Workbook

Sheet Cover Page
D1: Add company logo
N2: Version 20.5
B8: Add photo
N13: Notes:
N14: This template may require adjustments by individual operators to meet specific reporting requirements as defined in the site Permit(s)
B29: Annual Performance Report 2021
B31: Permit EPR/BT4249IB
B33: Newlincs Development IWMF
B37: Grimsby Operations
B39: Year: | C39: 2021
B41: Address: | C41: South Marsh Road, Stallingborough, NE Lincs, DN41 8BZ
B43: Tel: | C43: 01469 552550
B45: Email: | C45: info@newlincs.com
B47: Prepared by: | C47: Darren Rea | F47: Position: | G47: Systems Engineer
B49: Approved by: | C49: Stephen Gilbert | F49: Position: | G49: Plant Manager
B51: Version: | C51: 1
B53: Issue Date: | C53: 2022-01-19

Sheet Contents
A1: =+'Cover Page'!$B$29 -> Annual Performance Report 2021 | E1: =+'Cover Page'!$B$33 -> Newlincs Development IWMF
A3: Contents | K3: Notes:
A4: Section | B4: Subject | H4: Page | K4: Section references and Page nos. to be inserted
B5: Facility Information | H5: 3 | K5: Sections and Subjects may require adjustment by individual operators to meet specific reporting requirements as defined in the sites Permit(s)
B6: Operational Data | H6: 4
B7: Operational Summary | H7: 6
B8: Performance Form 1 | H8: 7
B9: Energy Form 1 | H9: 8
B10: Permit Compliance | H10: 9
B11: Improvements | H11: 10
B12: Public Liasion | H12: 11
B13: Residue Quality - Optional | H13: 12
B14: Emissions to Water | H14: 13
B15: Emissions to Air (periodically monitored) | H15: 14
B16: Emissions to Air (continuously monitored) | H16: 15
B17: Hydrogen Chloride emissions | H17: 16
B18: Sulphur Dioxdie emsissions | H18: 17
B19: Oxides of Notrigen emissions | H19: 18
B20: Total Organic Carbon emissions | H20: 19
B21: Particulate Matter emissions | H21: 20
B22: Carbon Monoxide emissions | H22: 21
B23: Ammonia emissions | H23: 23
A26: Version Control
A27: Section | B27: Information | H27: Date
A34: Distribution
A35: Copy | B35: Name, Role | H35: No.
A36: 1 | B36: Environment Agency
A44: This report is required under the Industrial Emissions Directive’s Article 55(2) requirements on reporting and public information on waste incineration plants and co-incineration plants, which require the operator to produce an annual report on the functioning and monitoring of the plant and make it available to the public.

Sheet Facility Info
A1: =+'Cover Page'!$B$29 -> Annual Performance Report 2021 | E1: =+'Cover Page'!$B$33 -> Newlincs Development IWMF
A3: Plant Description and Design
A5: The NEWLINCS energy from waste plant located at Stallingborough, near Grimsby, has been operating since 2003 providing MSW disposal services for North-East Lincolnshire Council. The waste process mainly originates from residents of the North-East Lincolnshire Council catchment area. The main purpose of the energy from waste plant is to burn municipal waste and to recover energy. The plant comprises of waste reception, storage of waste-fuel, combustion kiln, combustion air supply systems, boiler, steam turbine generator, hot water production, flue gas treatment, flue gas stack, separation and storage of residues, industrial water storage, plant control systems and recording and monitoring devices. The plant has a design capacity of 7 tonnes per hour, which equates to 56,000 tonnes per annum including an allowance for plant shutdown. There is one waste incineration stream. The heat produced is used to generate electricity for own use and export to the neighbouring chemical manufacturing plant or the national grid along with hot water which is also exported to the same adjacent plant. The process generates approximately 3MW of electricity and 3MW of heat.
A20: Summary of Operational Processes and Procedures
A22: Waste is delivered to the plant in covered vehicles which are weighed before tipping. They then tip into a waste storage pit within a fully enclosed building. The building is maintained under slight negative pressure to stop odour from the waste escaping, there is no odour produced by the incineration process. A 1.5 tonne grab transfers waste to the feed hopper of the combustion plant. The grab is also used to homogenise the waste and to identify and remove any non-conforming waste. Incineration takes place inside a conical oscillating combustion cell this is a particularly effective solution for smaller scale EfW plants. The tapered cylindrical cell is inclined by several degrees from the horizontal and oscillates by one hundred and five degrees either side of the vertical. The twin wall combustion cell is a one-piece steel fabrication lined with cast refractory 200mm thick. Primary combustion air is fed in below the waste to promote good combustion. Secondary combustion air is injected above the waste where it provides for good mixing and combustion control. The combustion gases exit the combustion cell and pass into the post-combustion chamber and then to the heat recovery boiler. The geometry and mechanical layout ensures a high degree of turbulence both in the bed of burning material and in the combustion flue gas. The combustion control system regulates the waste feed, combustion cell speed and combustion fans to maintain efficient combustion. Urea is injected into the combustion chamber to react with the oxides of nitrogen, chemically reducing them to nitrogen and water. Auxiliary low NOx gas burners are fitted for start-up and to ensure that a temperature above 850C for 2 seconds can always be maintained. The steam raised in the boiler plant is fed to a steam turbine, which generates electricity, the steam is then condensed and recycled to the boiler. The water make-up is taken from the mains supply and is treated in a demineralisation plant prior to use in the boiler. Hot water is generated, and its energy content exported by means of a closed loop to the neighbouring chemical manufacturing factory. Flue gases pass from the boiler to flue gas treatment (FGT) plant; flue gas enters a reaction chamber where powdered lime and activated carbon are injected to neutralise acid gases and absorb dioxins/furans, dioxin like PCBs, volatile organic compounds (VOCs) and mercury. There is a continuous recirculation of lime and ash in the reaction chamber in order to improve the efficiency of the neutralisation reaction. Bag filters remove the fine ash, excess lime and carbon as the gases pass across the bag fabric. The residues (APCR) from the filter are collected and stored a silo. The cleaned gas then discharges to atmosphere via one 55-metre stack at an efflux velocity in excess of 15m sec. Bottom ash (IBA), separated ferrous metals and APCR are sent for disposal or recovery off site by licensed contractors subject to waste licensing legislation. All process waste waters pass to the industrial water lagoon for closed loop recycling of waters used by the process. Clean run off water from roofs is discharge to local drainage. Regular analysis of the IBA and APC residues is carried out. Duty/standby Continuous Emission Monitoring (CEM) system monitor and record the stack flue gas emissions. All emissions monitoring is in accordance with site permit/EA guidance. The site operates to ISO 9001 14001 & 45001 procedures.

Sheet Operational Data
A1: =+'Cover Page'!$B$29 -> Annual Performance Report 2021 | E1: =+'Cover Page'!$B$33 -> Newlincs Development IWMF
A3: Operational Data | K3: Notes:
A4: Plant Size | D4: tonnes pa | F4: MWth | H4: MWe | K4: * - RDF to include SRF
A5: No. of combustion lines | B5: 1 | D5: No. of Turbines: | F5: 1 | K5: ** - CHP plants only
K6: 2020 updates include; heat in MWh, water in Litres, NCV in MJ/kg
A7: Waste types received | B7: Unit | C7: Q1 | D7: Q2 | E7: Q3 | F7: Q4 | G7: Year Total | H7: %
A8: Household / Local Authority | B8: tonnes | C8: 13063 | D8: 9391 | E8: 13579 | F8: 13006 | G8: =SUM(C8:F8) -> 49039 | H8: =IF(G8>0,G8/$G$18,"-") -> 0.9555347713 | K8: Availabiity Definition: 'the availability of a line is to be calculated by the number of hours the line reported Continuously Monitored emission levels to the Regulator through the calendar year divided by the total number of hours in that year. The overall plant availability is calculated as the Mean of all lines in the plant. For clarity this includes periods of Other Than Normal Operating Conditions (OTNOC) and abnormal operation.' Rationale: The primary function of an Energy from Waste facility is the disposal of waste. It follows therefore that the availability of a plant is determined by the period of time a facility spends undertaking this activity.
A9: Commercial & Industrial | C9: 314 | D9: 116 | E9: 979 | F9: 873 | G9: =SUM(C9:F9) -> 2282 | H9: 0.04446522866
A10: Hazardous | G10: 0 | H10: -
A11: Clinical | G11: 0 | H11: -
A12: Waste wood (biomass) | G12: 0 | H12: -
A13: Refuse Derived Fuel * - H'hold/LA | G13: =SUM(C13:F13) -> 0 | H13: -
A14: Refuse Derived Fuel * - C&I | G14: 0 | H14: -
A15: Other [Please specify] | G15: 0 | H15: -
A16: Other [Please specify]
A17: Other [Please specify]
A18: Total waste received | C18: =SUM(C8:C17) -> 13377 | D18: =SUM(D8:D17) -> 9507 | E18: =SUM(E8:E17) -> 14558 | F18: =SUM(F8:F17) -> 13879 | G18: =SUM(G8:G17) -> 51321 | H18: 1
A19: Rejected Waste | G19: =SUM(C19:F19) -> 0 | H19: =IF(G19>0,G19/$G$18,"-") -> -
A20: Unprocessed waste transferred out | G20: =SUM(C20:F20) -> 0 | H20: =IF(G20>0,G20/$G$18,"-") -> -
A21: Total waste combusted | C21: =C18-SUM(C19:C20) -> 13377 | D21: =D18-SUM(D19:D20) -> 9507 | E21: 14558 | F21: 13879 | G21: =SUM(C21:F21) -> 51321 | H21: =IF(G21>0,G21/$G$18,"-") -> 1
A23: Energy Useage / Export | B23: Unit | C23: Q1 | D23: Q2 | E23: Q3 | F23: Q4 | G23: Year Total | H23: KWh/te
A24: Power Generated | B24: MWh | C24: 6095 | D24: 4208 | E24: 6332 | F24: 6504 | G24: =SUM(C24:F24) -> 23139 | H24: =IF(G24>0,G24*1000/$G$21,"-") -> 450.8680657
A25: Power Exported | C25: 4929 | D25: 3437 | E25: 5225 | F25: 5366 | G25: =SUM(C25:F25) -> 18957 | H25: =IF(G25>0,G25*1000/$G$21,"-") -> 369.3809552
A26: Power Used on site | C26: 1194 | D26: 899 | E26: 1123 | F26: 1154 | G26: =SUM(C26:F26) -> 4370 | H26: =IF(G26>0,G26*1000/$G$21,"-") -> 85.15032833
A27: Power Imported | C27: 27 | D27: 128 | E27: 15 | F27: 17 | G27: 187 | H27: =IF(G27>0,G27*1000/$G$21,"-") -> 3.643732585
A28: Parasitic Load | B28: % | C28: =IF(C24>0,1-C25/(C24+C27),"-") -> 0.1948709572 | D28: =IF(D24>0,1-D25/(D24+D27),"-") -> 0.2073339483 | E28: =IF(E24>0,1-E25/(E24+E27),"-") -> 0.1767764298 | F28: =IF(F24>0,1-F25/(F24+F27),"-") -> 0.1771200736 | G28: =IF(G24>0,1-G25/(G24+G27),"-") -> 0.1873017234
A29: Thermal Energy Produced ** | B29: MWh | C29: 4379 | D29: 4218 | E29: 4829 | F29: 4763 | G29: =SUM(C29:F29) -> 18189 | H29: =IF(G29>0,G29*1000/$G$21,"-") -> 354.4163208
A30: Thermal Energy Exported ** | C30: 870 | D30: 651 | E30: 846 | F30: 979 | G30: 3346 | H30: =IF(G30>0,G30*1000/$G$21,"-") -> 65.19748251
A31: R1 value | G31: Design / Operational / n/a
A33: Waste Disposal & Recovery | B33: Unit | C33: Q1 | D33: Q2 | E33: Q3 | F33: Q4 | G33: Year Total | H33: % inputs
A34: APC Residues - produced | B34: tonnes | C34: 593 | D34: 349 | E34: 560 | F34: 567 | G34: =SUM(C34:F34) -> 2069 | H34: =IF(G34>0,G34/$G$18,"-") -> 0.04031488085
A35: IBA - produced | C35: 1909 | D35: 2042 | E35: 2312 | F35: 2096 | G35: 8359 | H35: =IF(G35>0,G35/$G$18,"-") -> 0.1628767951
A36: Metals recycling | C36: 295 | D36: 230 | E36: 373 | F36: 217 | G36: =SUM(C36:F36) -> 1115 | H36: =IF(G36>0,G36/$G$18,"-") -> 0.0217259991
A37: Other | C37: 0 | D37: 0 | E37: 0 | F37: 0 | G37: =SUM(C37:F37) -> 0 | H37: =IF(G37>0,G37/$G$18,"-") -> -
A38: Other | C38: 0 | D38: 0 | E38: 0 | F38: 0 | G38: 0 | H38: =IF(G38>0,G38/$G$18,"-") -> -
A39: Other | C39: 0 | D39: 0 | E39: 0 | F39: 0 | G39: 0 | H39: =IF(G39>0,G39/$G$18,"-") -> -
A41: Raw Material Usage | B41: Unit | C41: Q1 | D41: Q2 | E41: Q3 | F41: Q4 | G41: Year Total | H41: kg or Ltr /te
A42: Mains Water | B42: ltrs | C42: 1030000 | D42: 1194000 | E42: 1069000 | F42: 1076000 | G42: =SUM(C42:F42) -> 4369000 | H42: =IF(G42>0,G42/$G$18,"-") -> 85.13084312
A43: Other Water | B43: ltrs | G43: 0 | H43: =IF(G43>0,G43/$G$18,"-") -> -
A44: Ammonia | B44: kgs | G44: 0 | H44: =IF(G44>0,G44/$G$18,"-") -> -
A45: Urea | B45: kgs | C45: 3391 | D45: 3001 | E45: 6050 | F45: 6516 | G45: =SUM(C45:F45) -> 18958 | H45: =IF(G45>0,G45/$G$18,"-") -> 0.3694004404
A46: Activated Carbon | B46: kgs | C46: 5007 | D46: 3597 | E46: 5262 | F46: 5151 | G46: 19017 | H46: =IF(G46>0,G46/$G$18,"-") -> 0.3705500672
A47: Lime / hydrated lime | B47: kgs | C47: 122290 | D47: 51360 | E47: 71260 | F47: 93320 | G47: 338230 | H47: 6.590479531
A48: Fuel oil | B48: ltrs | G48: 0 | H48: -
A49: Gas | B49: cf | C49: 1424876 | D49: 1750795 | E49: 992977 | F49: 570403 | G49: 4739051
A50: Other | C50: 0 | D50: 0 | E50: 0 | F50: 0 | G50: 0
A52: Summary | B52: Line/Unit | C52: Q1 | D52: Q2 | E52: Q3 | F52: Q4 | G52: Year Total | J52: Hrs in year
A53: Availability of waste combustion by line, hrs | B53: =+B5 -> 1 | C53: 2086 | D53: 1499 | E53: 2192 | F53: 2146 | G53: =SUM(C53:F53) -> 7923 | H53: =+(G53)/J53 -> 0.9044520548 | J53: 8760
B54: 2 | C54: n/a | D54: n/a | E54: n/a | F54: n/a | G54: 0 | H54: x %
B55: 3 | C55: n/a | D55: n/a | E55: n/a | F55: n/a | G55: 0 | H55: x %
B56: 4 | C56: n/a | D56: n/a | E56: n/a | F56: n/a | G56: 0 | H56: x %
B57: 5 | C57: n/a | D57: n/a | E57: n/a | F57: n/a | G57: =SUM(C57:F57) -> 0 | H57: x %
A58: Overall Availability, mean avg. of all lines, hrs | C58: =AVERAGE(C53:C57) -> 2086 | D58: =AVERAGE(D53:D57) -> 1499 | E58: =AVERAGE(E53:E57) -> 2192 | F58: =AVERAGE(F53:F57) -> 2146 | G58: 7923 | H58: =+(G58)/J53 -> 0.9044520548
A59: Hours of turbine operations, hrs | B59: 1 | C59: 2074 | D59: 1507 | E59: 2177 | F59: 2142 | G59: 7900 | H59: =+(G59)/J53 -> 0.901826484
A60: Hours of turbine operations, hrs | B60: 2 | C60: n/a | D60: n/a | E60: n/a | F60: n/a | G60: 0 | H60: x %
A61: Hours of heat / steam export | C61: n/a | D61: n/a | E61: n/a | F61: n/a | G61: 0 | H61: =IF(B61>0,G60/J53,"n/a") -> n/a
A62: Net Calorific Value of waste | B62: MJ/kg | H62: -
A63: Abnormal Events | B63: qty. | D63: 1 | G63: 1 | H63: =IF(G63>0,"yes","no") -> yes
A64: Abnormal operation | B64: hours | D64: 0.5 | G64: 0.5 | H64: =+(G64)/J53 -> 5.707762557e-05
A65: Permit Breaches | B65: qty. | D65: 2 | G65: 2 | H65: =IF(G65>0,"yes","no") -> yes

Sheet Operational Summary
A1: =+'Cover Page'!$B$29 -> Annual Performance Report 2021 | E1: =+'Cover Page'!$B$33 -> Newlincs Development IWMF
A3: Summary of Plant Operations and Maintenance during the reporting year
A5: During 2021 the plant operated for 7923 hours, scheduled maintenance was undertaken in May main works included combustor refractory repairs, FGT Economiser both banks of heat exchanger tubes replaced, all FGT filter bags replaced, Burner unit for Booster Burner replaced, additonal sections of boiler tube refractory replaced with tiles.
A29: Summary of Residue Handling for the reporting year
A31: Air Pollution Control residues (APCR) is disposed of at permitted treatment centre where the material is stabilised and disposed of in a hazardous landfill site. Incinerator Bottom Ash (IBA) produced is recycled at a permitted treatment centre to produce Incinerator bottom ash aggregate (IBAA) which is used as a blend constituent in various aggregate mixtures. The process involves screening the material, separating the ferrous and non-ferrous metals for recycling, re-screening, then further metal removal and then final product stockpiling.

Sheet Perf. Form 1
A1: =+'Cover Page'!C39 -> 2021 | B1: Annual Reporting Performance Form 1
A3: =+'Cover Page'!B31 -> Permit EPR/BT4249IB | F3: Operator: | G3: =+'Cover Page'!B37:I37 -> 0
A4: Facility: | B4: =+'Cover Page'!B33:I33 -> Newlincs Development IWMF | F4: Form: | G4: Performance 1
A6: Reporting Period from: | D6: 2021-01-01 | F6: to: | G6: 2021-12-31
A8: =+A1 -> 2021 | B8: Annual Reporting of Waste Disposal and Recovery
A9: Waste Description | C9: Disposal Route(s) | E9: Disposal Tonnes | G9: Recovery Tonnes | I9: % / tonne of waste incinerated
A10: 1) Hazardous Wastes
A11: APC Residues | C11: D01 | E11: 2069 | I11: =IF((E11+G11)>0,(E11+G11)/'Operational Data'!$G$21, "-") -> 0.04031488085
A12: IBA | I12: =IF((E12+G12)>0,(E12+G12)/'Operational Data'!$G$21, "-") -> -
I13: =IF((E13+G13)>0,(E13+G13)/'Operational Data'!$G$21, "-") -> -
I14: =IF((E14+G14)>0,(E14+G14)/'Operational Data'!$G$21, "-") -> -
A15: Total Hazardous Waste | E15: =SUM(E11:F14) -> 2069 | G15: =SUM(G11:H14) -> 0 | I15: =IF((E15+G15)>0,(E15+G15)/'Operational Data'!$G$21, "-") -> 0.04031488085
A17: 2) Non-Hazardous Wastes
A18: IBA | C18: R5 | E18: 8359 | I18: =IF((E18+G18)>0,(E18+G18)/'Operational Data'!$G$21, "-") -> 0.1628767951
A19: Ferrous Metal | C19: R4 | E19: 1115 | I19: =IF((E19+G19)>0,(E19+G19)/'Operational Data'!$G$21, "-") -> 0.0217259991
A20: Process Water | I20: =IF((E20+G20)>0,(E20+G20)/'Operational Data'!$G$21, "-") -> -
I21: =IF((E21+G21)>0,(E21+G21)/'Operational Data'!$G$21, "-") -> -
I22: =IF((E22+G22)>0,(E22+G22)/'Operational Data'!$G$21, "-") -> -
A23: Total Non-Hazardous Waste | E23: =SUM(E18:F22) -> 9474 | G23: =SUM(G18:H22) -> 0 | I23: =IF((E23+G23)>0,(E23+G23)/'Operational Data'!$G$21, "-") -> 0.1846027942
A24: TOTAL WASTE | E24: =+E23+E15 -> 11543 | G24: =+G23+G15 -> 0 | I24: =IF((E24+G24)>0,(E24+G24)/'Operational Data'!$G$21, "-") -> 0.224917675
A26: Operator’s comments :
A31: =+A1 -> 2021 | B31: Annual Reporting of Water and Other Raw Material Usage
A32: Raw Material | E32: Usage | G32: Unit | H32: Specific Useage | J32: Unit
A33: Mains Water | E33: =+'Operational Data'!G42/1000 -> 4369 | G33: m3 | H33: =IF(E33>0,E33/'Operational Data'!$G$21,"-") -> 0.08513084312 | J33: m3/te
A34: Total Water | E34: =+'Operational Data'!G43+'Operational Data'!G42/1000 -> 4369 | G34: m3 | H34: =IF(E34>0,E34/'Operational Data'!$G$21,"-") -> 0.08513084312 | J34: m3/te
A35: Urea / Ammonia | E35: ='Operational Data'!G45 -> 18958 | G35: kg | H35: =IF(E35>0,E35/'Operational Data'!$G$21,"-") -> 0.3694004404 | J35: kg/te
A36: Activated Carbon | E36: =+'Operational Data'!G46 -> 19017 | G36: kg | H36: =IF(E36>0,E36/'Operational Data'!$G$21,"-") -> 0.3705500672 | J36: kg/te
A37: Lime / hydrated lime / Sodium Bicarb. | E37: =+'Operational Data'!G47 -> 338230 | G37: kg | H37: =IF(E37>0,E37/'Operational Data'!$G$21,"-") -> 6.590479531 | J37: kg/te
A39: Operator’s comments :
A43: =+A31 -> 2021 | B43: Annual Reporting of other performance indicators
A44: Parameter | C44: Results by Line
C45: A1 | D45: A2 | E45: A3 | F45: A4 | G45: A5 | I45: Turbine 1 | J45: Turbine 2
A46: Operating hours for the year, hours | C46: 7923
A47: Number of periods of abnormal operation, qty. | C47: 1
A48: Cumulative hours of abnormal operation for this year, hours | C48: 0.5
A50: Operator’s comments :
A54: Signed: | G54: Date:

Sheet Energy Form 1
A1: =+'Cover Page'!C39 -> 2021 | B1: Annual Reporting of Energy Usage/Export
A3: =+'Cover Page'!B31 -> Permit EPR/BT4249IB | F3: Operator: | G3: =+'Cover Page'!B37:I37 -> 0
A5: Facility: | B5: =+'Cover Page'!B33:I33 -> Newlincs Development IWMF | F5: Form: | G5: Energy 1
A7: Reporting Period from: | D7: =+'Perf. Form 1'!D6:E6 -> 2021-01-01 | F7: to: | G7: =+'Perf. Form 1'!G6:H6 -> 2021-12-31
A9: Energy Source | D9: Energy Usage | F9: Unit | G9: Specific Useage (KWh/tonne incinerated
A10: Electricity Produced | D10: =+'Operational Data'!G24 -> 23139 | F10: MWh | G10: =+'Operational Data'!H24 -> 450.8680657
A11: Electricity Imported | D11: =+'Operational Data'!G27 -> 187 | F11: MWh | G11: =+'Operational Data'!H27 -> 3.643732585
A12: Electricity Exported | D12: =+'Operational Data'!G25 -> 18957 | F12: MWh | G12: =+'Operational Data'!H25 -> 369.3809552
A13: Natural Gas | D13: ='Operational Data'!G49/35.3146667 -> 134194.9802 | F13: m3
A14: Steam/hot water exported | D14: =+'Operational Data'!G30 -> 3346 | F14: GWh | G14: =+'Operational Data'!H30 -> 65.19748251
A18: Operator’s comments :
A29: Signed: | G29: Date:

Sheet Permit Compliance
A1: =+'Cover Page'!$B$29 -> Annual Performance Report 2021 | E1: =+'Cover Page'!$B$33 -> Newlincs Development IWMF
A3: Summary of Permit Compliance
A5: Compliance with permit limits for continuously monitored pollutants
A7: The plant met its emission limits as shown in the table below:
A8: Substance | C8: Percentage time compliant during operation | L8: Notes:
C9: Half-hourly limit | F9: Daily limit | L9: Report to 2 decimal places, i.e. xx.xx% Please provide a brief summary of each notification or non-compliance in the table (rather than just referring to notifications that were sent to the Regulator).
A10: Particulates | C10: 1 | F10: 1
A11: Oxides of nitrogen | C11: 1 | F11: 1
A12: Sulphur dioxide | C12: 1 | F12: 1
A13: Carbon monoxide | C13: 0.9999 | F13: 1
A14: Total organic carbon | C14: 1 | F14: 1
A15: Hydrogen chloride | C15: 1 | F15: 1
A16: Hydrogen fluoride | C16: 1 | F16: 1
C17: 0.9999 | F17: 1
A19: Summary of any notifications or non-compliances under the permit
A20: Date | B20: Summary of notification or non-compliance [including Line/Reference] | E20: Reason | H20: Measures taken to prevent reoccurrence
A21: 2021-01-01 | B21: Reporting errors highlighted for 2020 after Data Verification audit | E21: Calibration functions incorrectly calculated. H2O correction incorrectly applied & O2 correction not using corrected data | H21: EMS Procedures reviewed and revised. Form created to carry out manual calculations to check validity of provided calibration functions.
A22: 30.05.21 | B22: One half hour abnormal operation. | E22: FGT compartment blockage resulting in het damage to filter bags
A23: 2021-09-17 | B23: 2 half hour exceedances for CO | E23: Conveyor water level and wet waste being processed | H23: EMS, Operational procedures and training reviewed as per CAR Actions
A27: Summary of any complaints received and actions to taken to resolve them.
A28: Date | B28: Summary of complaint [including Line/Reference] | E28: Reason * | H28: Measures taken to prevent reoccurrence
E34: * including whether substantiated by the operator or the EA

Sheet Improvements
A1: =+'Cover Page'!$B$29 -> Annual Performance Report 2021 | E1: =+'Cover Page'!$B$33 -> Newlincs Development IWMF
A3: Summary of Plant Improvements
A5: Summary of any efficiency improvements that have been completed within the year.
A6: FGT Economiser both banks of heat exchanger tubes replaced. All FGT filter bags replaced. Burner unit for Booster Burner replaced. Sections of boiler tube refractory replaced with tiles.
A16: Summary of any permit improvement conditions that have been completed within the year and the resulting environmental benefits.
A27: Summary of any changes to the plant or operating techniques which required a variation to the permit and a summary of the resulting environmental impact.
A38: Summary of any other improvements made to the plant or planned to be made and a summary of the resulting environmental benefits.
A39: Duty and Standby Gas Analysers CEMs replaced due to old units reaching end of life.

Sheet Public Liasion
A1: =+'Cover Page'!$B$29 -> Annual Performance Report 2021 | E1: =+'Cover Page'!$B$33 -> Newlincs Development IWMF
A3: Details of Public & Stakeholder Liasion
A5: Summary of events held during the reporting year.
A6: Date | C6: Description
C7: No residents panel meetings held during 2021
A16: List of events planned for next year
A17: Date | C17: Description
C18: No planned events. Visitors and questions are welcome, please contact the site.
A29: If you wish to be involved in the public liasion programme, please contact _________________

Sheet Residue Quality
A1: =+'Cover Page'!$B$29 -> Annual Performance Report 2021 | E1: =+'Cover Page'!$B$33 -> Newlincs Development IWMF
A3: Residue Quality Monitoring Requirements
A5: Summary of monitoring undertaken and compliance
A6: Incinerator Bottom Ash samples taken monthly and sent for LOI analysis
A8: Incinerator Bottom Ash and APC samples sent for Full Analysis quarterly
A13: Commentary on any specific events
A14: Date & Event | C14: Description
A27: Residue Quality Monitoring Results
A28: Parameter (unit) | C28: Limit | D28: Normal Operation
D29: Bottom ash | F29: APC Residues
A30: Loss on Ignition (average %) | C30: <5% | D30: 3.99
A31: Total Organic Carbon (average %) | C31: <3% | D31: N/A
A32: No. of Assessments Undertaken | C32: --- | D32: 12 | F32: 4
A33: No. of Hazardous Results | C33: --- | D33: N/A
A35: Comments :

Sheet Water
A1: =+'Cover Page'!$B$29 -> Annual Performance Report 2021 | E1: =+'Cover Page'!$B$33 -> Newlincs Development IWMF
A3: Emissions to Water
A5: Summary of monitoring undertaken and compliance
A6: There are three swales onsite - W1, W2 and MRF. These receive and hold only clean surface water runnoff from roadways and buildings. All swales are checked weekly for pH and contamination.
A8: Water release from the swales is very infrequent but prior to any release occuring pH levels are checked to ensure they are within the prescribed limits.
A13: Commentary on any specific events
A14: Date & Event | C14: Description
A22: Emissions to Water / Sewer
A23: Parameter | D23: Monitoring Frequency | G23: Limit | H23: Target | I23: Max. | J23: Average
A24: Swale pH - W1 | D24: Weekly | G24: 9 | I24: 9 | J24: 7.38
A25: Swale pH - W2 | D25: Weekly | G25: 9 | I25: 8.2 | J25: 7.27
A26: Swale pH - MRF | D26: Weekly | G26: 9 | I26: 8.17 | J26: 7.52

Sheet Air (periodic)
A1: =+'Cover Page'!$B$29 -> Annual Performance Report 2021 | E1: =+'Cover Page'!$B$33 -> Newlincs Development IWMF
A3: Emissions to Air (periodically monitored)
A5: Summary of monitoring undertaken, standards used and compliance | M5: Notes:
A6: Periodic Air Monitoring undertaken quarterly to ISO15713, EN14385, MID14385, ISO 11338 as appropriate. | M6: Template may require adjustment for any bespoke monitoring requirements of permit.
A9: Results of emissions to air that are periodically monitored
A10: Substance | C10: Ref. Period | D10: Emission Limit Value | F10: Average | M10: User to add additional tables as necessary, depending on whether quarterly or bi-annual reporting is required for the compliance year
F11: A1 | G11: A2 | H11: A3 | I11: A4 | J11: A5
A12: Hydrogen fluoride | C12: 1 hr | D12: 2 mg/m3 | F12: 0.041
A13: Cd and Th and their compounds | C13: 6-8hrs | D13: 0.05 mg/m3 | F13: 0.001
A14: Hg and its compounds | C14: 6-8hrs | D14: 0.05 mg/m3 | F14: 0.000375
A15: Sb, As, Pb, Cr, Co, Cu, Mn, Ni, V and their compounds | C15: 6-8hrs | D15: 0.5 mg/m3 | F15: 0.041
A16: Dioxins & Furans (I-TEQ) | C16: 6-8hrs | D16: 0.1 ng/m3 | F16: 0.00295
A17: PCBs (WHO-TEQ Humans / Mammals) | C17: 6-8hrs | D17: None set ng/m3 | F17: 0.000223
A18: PCBs (WHO-TEQ Fish) | C18: 6-8hrs | D18: None set ng/m3 | F18: 1.2e-05
A19: PCBs (WHO-TEQ Birds) | C19: 6-8hrs | D19: None set ng/m3 | F19: 0.00091
A20: Dioxins & Furans (WHO-TEQ Humans / Mammals) | C20: 6-8hrs | D20: None set ng/m3 | F20: 0.00285
A21: Dioxins & Furans (WHO-TEQ Fish) | C21: 6-8hrs | D21: None set ng/m3 | F21: 0.00305
A22: Dioxins & Furans (WHO-TEQ Birds) | C22: 6-8hrs | D22: None set ng/m3 | F22: 0.00435
A23: Anthanthrene | C23: 6-8hrs | D23: None set µg/m3 | F23: 0.002
A24: Benzo(a)anthracene | C24: 6-8hrs | D24: None set µg/m3 | F24: 0.003
A25: Benzo(a)pyrene | C25: 6-8hrs | D25: None set µg/m3 | F25: 0.002
A26: Benzo(b)fluoranthene | C26: 6-8hrs | D26: None set µg/m3 | F26: 0.003
A27: Benzo(b)naptho(2,1-d) thiophene | C27: 6-8hrs | D27: None set µg/m3 | F27: 0.002
A28: Benzo(c)phenanthrene | C28: 6-8hrs | D28: None set µg/m3 | F28: 0.002
A29: Benzo(ghi)perylene | C29: 6-8hrs | D29: None set µg/m3 | F29: 0.002
A30: Benzo(k)fluoranthene | C30: 6-8hrs | D30: None set µg/m3 | F30: 0.002
A31: Cholanthrene | C31: 6-8hrs | D31: None set µg/m3 | F31: 0.002
A32: Chrysene | C32: 6-8hrs | D32: None set µg/m3 | F32: 0.0055
A33: Cyclopenta(cd)pyrene | C33: 6-8hrs | D33: None set µg/m3 | F33: 0.002
A34: Dibenzo(ai)pyrene | C34: 6-8hrs | D34: None set µg/m3 | F34: 0.004
A35: Dibenzo(ah)anthracene | C35: 6-8hrs | D35: None set µg/m3 | F35: 0.004
A36: Fluoranthene | C36: 6-8hrs | D36: None set µg/m3 | F36: 0.116
A37: Indeno(123-cd) pyrene | C37: 6-8hrs | D37: None set µg/m3 | F37: 0.002
A38: Naphthalene | C38: 6-8hrs | D38: None set µg/m3 | F38: 0.3845
A39: Comments :
A40: Data reported is the average of Q1, Q2, Q3 and Q4 results

Sheet Air (CEMS)
A1: =+'Cover Page'!$B$29 -> Annual Performance Report 2021 | I1: =+'Cover Page'!$B$33 -> Newlincs Development IWMF
A3: Emissions to Air (continously monitored)
P4: Notes:
A5: Summary of monitoring undertaken, standards used and compliance | P5: Template may require adjustment for any bespoke monitoring requirements of permit
P6: Report to 2 decimal places, i.e. xx.xx%
A11: Results of emissions to air that are continuously monitored (maximum and average values for each line)
A12: Substance | B12: Reference Period | C12: Emission Limit Value | D12: A1 | F12: A2 | H12: A3 | J12: A4 | L12: A5
D13: Max. | E13: Avg. | F13: Max. | G13: Avg. | H13: Max. | I13: Avg. | J13: Max. | K13: Avg. | L13: Max. | M13: Avg.
A14: Oxides of nitrogen | B14: Daily mean | C14: 200 mg/m3 | D14: 197.48 | E14: 174.675
B15: ½ hourly mean | C15: 400 mg/m3 | D15: 197.5 | E15: 189.817
A16: Particulates | B16: Daily mean | C16: 10 mg/m3 | D16: 0.56 | E16: 0.3
B17: ½ hourly mean | C17: 30 mg/m3 | D17: 0.75 | E17: 0.351
A18: Total Organic Carbon | B18: Daily mean | C18: 10 mg/m3 | D18: 1.36 | E18: 0.79
B19: ½ hourly mean | C19: 20 mg/m3 | D19: 1.43 | E19: 0.833
A20: Hydrogen chloride | B20: Daily mean | C20: 10 mg/m3 | D20: 3.67 | E20: 2.149
B21: ½ hourly mean | C21: 60 mg/m3 | D21: 3.94 | E21: 2.335
A22: Sulphur dioxide | B22: Daily mean | C22: 50 mg/m3 | D22: 8.37 | E22: 3.918
B23: ½ hourly mean | C23: 200 mg/m3 | D23: 15.2 | E23: 4.946
A24: Carbon monoxide | B24: Daily mean | C24: 50 mg/m3 | D24: 4.55 | E24: 3.56
B25: ½ hourly mean * | C25: 100 mg/m3 * | D25: 4.8 | E25: 3.913
B26: 95%ile 10-min avg * | C26: 150 mg/m3 * | D26: N/A | E26: N/A
A27: Ammonia | B27: Daily mean | C27: No limit set | D27: 1.24 | E27: 0.484
A28: * = delete or amend as appropriate
A29: Comments :

Sheet HCl
A1: =+'Cover Page'!$B$29 -> Annual Performance Report 2021 | E1: =+'Cover Page'!$B$33 -> Newlincs Development IWMF
A3: Monitoring of Hydrogen Chloride emissions | D3: Whole Installation | G3: See Notes in Cell Q3 | J3: =+A3 -> Monitoring of Hydrogen Chloride emissions | N3: Per Combustion Line | Q3: Notes:
Q4: User to add logic to complete Whole installation, Table A5:G18. From the data in Per Combustion Line, Table J6:O79, subject to No. of lines installed
A5: mg/Nm3 | B5: 1/2 Hourly Reference Periods | E5: Daily Reference Periods
A6: =+'Cover Page'!C39 -> 2021 | B6: 1/2 hourly HCl ELV | C6: Monthly 1/2 hourly mean | D6: Highest 1/2 hourly maximum | E6: Daily HCl ELV | F6: Monthly daily mean | G6: Highest daily maximum | J6: =+A6 -> 2021 | K6: mg/Nm3 | L6: Monthly 1/2 hourly mean | M6: Monthly 1/2 hourly maximum | N6: Monthly daily mean | O6: Monthly daily maximum
A7: Jan | B7: 60 | C7: 1.95 | D7: 7.25 | E7: 10 | F7: 1.95 | G7: 2.83 | J7: A1 | K7: Jan | L7: 1.95 | M7: 7.25 | N7: 1.95 | O7: 2.83
A8: Feb | B8: 60 | C8: 1.525 | D8: 18.9 | E8: 10 | F8: 1.525 | G8: 5.48 | K8: Feb | L8: 1.525 | M8: 18.9 | N8: 1.525 | O8: 5.48
A9: Mar | B9: 60 | C9: 3.94 | D9: 34.7 | E9: 10 | F9: 3.94 | G9: 7.42 | K9: Mar | L9: 3.94 | M9: 34.7 | N9: 3.94 | O9: 7.42 | Q9: Whole Installation table A5:G18:
A10: Apr | B10: 60 | C10: 3.11 | D10: 19.3 | E10: 10 | F10: 3.11 | G10: 6.26 | K10: Apr | L10: 3.11 | M10: 19.3 | N10: 3.11 | O10: 6.26 | Q10: Mean: for 1/2 hourly and daily periods calculate mean of values across all operational combustion lines for the month
A11: May | B11: 60 | C11: 2.15 | D11: 4.4 | E11: 10 | F11: 2.15 | G11: 3.04 | K11: May | L11: 2.15 | M11: 4.4 | N11: 2.15 | O11: 3.04
A12: Jun | B12: 60 | C12: 2.66 | D12: 14.2 | E12: 10 | F12: 2.66 | G12: 4.57 | K12: Jun | L12: 2.66 | M12: 14.2 | N12: 2.66 | O12: 4.57
A13: Jul | B13: 60 | C13: 3.16 | D13: 22 | E13: 10 | F13: 3.16 | G13: 5.9 | K13: Jul | L13: 3.16 | M13: 22 | N13: 3.16 | O13: 5.9 | Q13: Maximum: for 1/2 hourly and daily periods use the highest value across all operational combustion lines for the month
A14: Aug | B14: 60 | C14: 3.1 | D14: 16 | E14: 10 | F14: 3.1 | G14: 5.14 | K14: Aug | L14: 3.1 | M14: 16 | N14: 3.1 | O14: 5.14
A15: Sep | B15: 60 | C15: 2.91 | D15: 21.1 | E15: 10 | F15: 2.91 | G15: 6.02 | K15: Sep | L15: 2.91 | M15: 21.1 | N15: 2.91 | O15: 6.02
A16: Oct | B16: 60 | C16: 1.35 | D16: 6.7 | E16: 10 | F16: 1.35 | G16: 2.8 | K16: Oct | L16: 1.35 | M16: 6.7 | N16: 1.35 | O16: 2.8
A17: Nov | B17: 60 | C17: 1.21 | D17: 18.7 | E17: 10 | F17: 1.21 | G17: 2.84 | K17: Nov | L17: 1.21 | M17: 18.7 | N17: 1.21 | O17: 2.84
A18: Dec | B18: 60 | C18: 0.95 | D18: 10.2 | E18: 10 | F18: 0.95 | G18: 2.57 | K18: Dec | L18: 0.95 | M18: 10.2 | N18: 0.95 | O18: 2.57
K19: Annual | L19: =AVERAGE(L7:L18) -> 2.334583333 | M19: =MAX(M7:M18) -> 34.7 | N19: =AVERAGE(N7:N18) -> 2.334583333 | O19: =MAX(O7:O18) -> 7.42
J21: =+A6 -> 2021 | K21: mg/Nm3 | L21: Monthly 1/2 hourly mean | M21: Monthly 1/2 hourly maximum | N21: Monthly daily mean | O21: Monthly daily maximum
J22: A2 | K22: Jan
K23: Feb
K24: Mar
K25: Apr
K26: May
K27: Jun
K28: Jul
K29: Aug
K30: Sep
K31: Oct
K32: Nov
K33: Dec
K34: Annual | L34: =AVERAGE(L22:L33) ->  | M34: =MAX(M22:M33) -> 0 | N34: =AVERAGE(N22:N33) ->  | O34: =MAX(O22:O33) -> 0
J36: =+A6 -> 2021 | K36: mg/Nm3 | L36: Monthly 1/2 hourly mean | M36: Monthly 1/2 hourly maximum | N36: Monthly daily mean | O36: Monthly daily maximum
J37: A3 | K37: Jan
K38: Feb
K39: Mar
K40: Apr
K41: May
K42: Jun
K43: Jul
K44: Aug
K45: Sep
K46: Oct
K47: Nov
A48: Comments : | K48: Dec
K49: Annual | L49: =AVERAGE(L37:L48) ->  | M49: =MAX(M37:M48) -> 0 | N49: =AVERAGE(N37:N48) ->  | O49: =MAX(O37:O48) -> 0
J51: =+A6 -> 2021 | K51: mg/Nm3 | L51: Monthly 1/2 hourly mean | M51: Monthly 1/2 hourly maximum | N51: Monthly daily mean | O51: Monthly daily maximum
J52: A4 | K52: Jan
K53: Feb
K54: Mar
K55: Apr
K56: May
K57: Jun
K58: Jul
K59: Aug
K60: Sep
K61: Oct
K62: Nov
K63: Dec
K64: Annual | L64: =AVERAGE(L52:L63) ->  | M64: =MAX(M52:M63) -> 0 | N64: =AVERAGE(N52:N63) ->  | O64: =MAX(O52:O63) -> 0
J66: =+A6 -> 2021 | K66: mg/Nm3 | L66: Monthly 1/2 hourly mean | M66: Monthly 1/2 hourly maximum | N66: Monthly daily mean | O66: Monthly daily maximum
J67: A5 | K67: Jan
K68: Feb
K69: Mar
K70: Apr
K71: May
K72: Jun
K73: Jul
K74: Aug
K75: Sep
K76: Oct
K77: Nov
K78: Dec
K79: Annual | L79: =AVERAGE(L67:L78) ->  | M79: =MAX(M67:M78) -> 0 | N79: =AVERAGE(N67:N78) ->  | O79: =MAX(O67:O78) -> 0

Sheet SO2
A1: =+'Cover Page'!$B$29 -> Annual Performance Report 2021 | E1: =+'Cover Page'!$B$33 -> Newlincs Development IWMF
A3: Monitoring of Sulphur dioxide emissions | D3: Whole Installation | G3: See Notes in Cell Q3 | J3: =+A3 -> Monitoring of Sulphur dioxide emissions | N3: Per Combustion Line | Q3: Notes:
Q4: User to add logic to complete Whole installation, Table A5:G18. From the data in Per Combustion Line, Table J6:O79, subject to No. of lines installed
A5: mg/Nm3 | B5: 1/2 Hourly Reference Periods | E5: Daily Reference Periods
A6: =+'Cover Page'!C39 -> 2021 | B6: 1/2 hourly SO2 ELV | C6: Monthly 1/2 hourly mean | D6: Highest 1/2 hourly maximum | E6: Daily SO2 ELV | F6: Monthly daily mean | G6: Highest daily maximum | J6: =+A6 -> 2021 | K6: mg/Nm3 | L6: Monthly 1/2 hourly mean | M6: Monthly 1/2 hourly maximum | N6: Monthly daily mean | O6: Monthly daily maximum
A7: Jan | B7: 200 | C7: 4.6 | D7: 76.9 | E7: 50 | F7: 4.6 | G7: 10.7 | J7: A1 | K7: Jan | L7: 4.6 | M7: 76.9 | N7: 4.6 | O7: 10.7
A8: Feb | B8: 200 | C8: 2.15 | D8: 75.4 | E8: 50 | F8: 2.15 | G8: 8.81 | K8: Feb | L8: 2.15 | M8: 75.4 | N8: 2.15 | O8: 8.81
A9: Mar | B9: 200 | C9: 4.7 | D9: 173.9 | E9: 50 | F9: 4.7 | G9: 17.26 | K9: Mar | L9: 4.7 | M9: 173.9 | N9: 4.7 | O9: 17.26 | Q9: Whole Installation table A5:G18:
A10: Apr | B10: 200 | C10: 3.3 | D10: 72.3 | E10: 50 | F10: 3.3 | G10: 9.41 | K10: Apr | L10: 3.3 | M10: 72.3 | N10: 3.3 | O10: 9.41 | Q10: Mean: for 1/2 hourly and daily periods calculate mean of values across all operational combustion lines for the month
A11: May | B11: 200 | C11: 15.2 | D11: 113 | E11: 50 | F11: 15.2 | G11: 30.15 | K11: May | L11: 15.2 | M11: 113 | N11: 15.2 | O11: 30.15
A12: Jun | B12: 200 | C12: 9.2 | D12: 124.2 | E12: 50 | F12: 9.2 | G12: 23.36 | K12: Jun | L12: 9.2 | M12: 124.2 | N12: 9.2 | O12: 23.36
A13: Jul | B13: 200 | C13: 4.4 | D13: 124.4 | E13: 50 | F13: 4.4 | G13: 17.65 | K13: Jul | L13: 4.4 | M13: 124.4 | N13: 4.4 | O13: 17.55 | Q13: Maximum: for 1/2 hourly and daily periods use the highest value across all operational combustion lines for the month
A14: Aug | B14: 200 | C14: 6 | D14: 110.7 | E14: 50 | F14: 6 | G14: 19.08 | K14: Aug | L14: 6 | M14: 110.7 | N14: 6 | O14: 19.08
A15: Sep | B15: 200 | C15: 4.4 | D15: 112.8 | E15: 50 | F15: 4.4 | G15: 13.3 | K15: Sep | L15: 4.4 | M15: 112.8 | N15: 4.4 | O15: 13.3
A16: Oct | B16: 200 | C16: 2.6 | D16: 87.2 | E16: 50 | F16: 2.6 | G16: 10.82 | K16: Oct | L16: 2.6 | M16: 87.2 | N16: 2.6 | O16: 10.82
A17: Nov | B17: 200 | C17: 1.9 | D17: 129.1 | E17: 50 | F17: 1.9 | G17: 10.08 | K17: Nov | L17: 1.9 | M17: 129.1 | N17: 1.9 | O17: 10.08
A18: Dec | B18: 200 | C18: 0.9 | D18: 57.5 | E18: 50 | F18: 0.9 | G18: 5.2 | K18: Dec | L18: 0.9 | M18: 57.5 | N18: 0.9 | O18: 5.2
K19: Annual | L19: =AVERAGE(L7:L18) -> 4.945833333 | M19: =MAX(M7:M18) -> 173.9 | N19: =AVERAGE(N7:N18) -> 4.945833333 | O19: =MAX(O7:O18) -> 30.15
J21: =+A6 -> 2021 | K21: mg/Nm3 | L21: Monthly 1/2 hourly mean | M21: Monthly 1/2 hourly maximum | N21: Monthly daily mean | O21: Monthly daily maximum
J22: A2 | K22: Jan
K23: Feb
K24: Mar
K25: Apr
K26: May
K27: Jun
K28: Jul
K29: Aug
K30: Sep
K31: Oct
K32: Nov
K33: Dec
K34: Annual | L34: =AVERAGE(L22:L33) ->  | M34: =MAX(M22:M33) -> 0 | N34: =AVERAGE(N22:N33) ->  | O34: =MAX(O22:O33) -> 0
J36: =+A6 -> 2021 | K36: mg/Nm3 | L36: Monthly 1/2 hourly mean | M36: Monthly 1/2 hourly maximum | N36: Monthly daily mean | O36: Monthly daily maximum
J37: A3 | K37: Jan
K38: Feb
K39: Mar
K40: Apr
K41: May
K42: Jun
K43: Jul
K44: Aug
K45: Sep
K46: Oct
K47: Nov
A48: Comments : | K48: Dec
K49: Annual | L49: =AVERAGE(L37:L48) ->  | M49: =MAX(M37:M48) -> 0 | N49: =AVERAGE(N37:N48) ->  | O49: =MAX(O37:O48) -> 0
J51: =+A6 -> 2021 | K51: mg/Nm3 | L51: Monthly 1/2 hourly mean | M51: Monthly 1/2 hourly maximum | N51: Monthly daily mean | O51: Monthly daily maximum
J52: A4 | K52: Jan
K53: Feb
K54: Mar
K55: Apr
K56: May
K57: Jun
K58: Jul
K59: Aug
K60: Sep
K61: Oct
K62: Nov
K63: Dec
K64: Annual | L64: =AVERAGE(L52:L63) ->  | M64: =MAX(M52:M63) -> 0 | N64: =AVERAGE(N52:N63) ->  | O64: =MAX(O52:O63) -> 0
J66: =+A6 -> 2021 | K66: mg/Nm3 | L66: Monthly 1/2 hourly mean | M66: Monthly 1/2 hourly maximum | N66: Monthly daily mean | O66: Monthly daily maximum
J67: A5 | K67: Jan
K68: Feb
K69: Mar
K70: Apr
K71: May
K72: Jun
K73: Jul
K74: Aug
K75: Sep
K76: Oct
K77: Nov
K78: Dec
K79: Annual | L79: =AVERAGE(L67:L78) ->  | M79: =MAX(M67:M78) -> 0 | N79: =AVERAGE(N67:N78) ->  | O79: =MAX(O67:O78) -> 0

Sheet NOx
A1: =+'Cover Page'!$B$29 -> Annual Performance Report 2021 | E1: =+'Cover Page'!$B$33 -> Newlincs Development IWMF
A3: Monitoring of Oxides of Nitrogen emissions | D3: Whole Installation | G3: See Notes in Cell Q3 | J3: =+A3 -> Monitoring of Oxides of Nitrogen emissions | N3: Per Combustion Line | Q3: Notes:
Q4: User to add logic to complete Whole installation, Table A5:G18. From the data in Per Combustion Line, Table J6:O79, subject to No. of lines installed
A5: mg/Nm3 | B5: 1/2 Hourly Reference Periods | E5: Daily Reference Periods
A6: =+'Cover Page'!C39 -> 2021 | B6: 1/2 hourly NOx ELV | C6: Monthly 1/2 hourly mean | D6: Highest 1/2 hourly maximum | E6: Daily NOx ELV | F6: Monthly daily mean | G6: Highest daily maximum | J6: =+A6 -> 2021 | K6: mg/Nm3 | L6: Monthly 1/2 hourly mean | M6: Monthly 1/2 hourly maximum | N6: Monthly daily mean | O6: Monthly daily maximum
A7: Jan | B7: 400 | C7: 197.5 | D7: 254.6 | E7: 200 | F7: 197.5 | G7: 198.2 | J7: A1 | K7: Jan | L7: 197.5 | M7: 254.6 | N7: 197.5 | O7: 198.2
A8: Feb | B8: 400 | C8: 193.3 | D8: 249 | E8: 200 | F8: 193.3 | G8: 199.5 | K8: Feb | L8: 193.3 | M8: 249 | N8: 193.3 | O8: 199.5
A9: Mar | B9: 400 | C9: 187.5 | D9: 232.6 | E9: 200 | F9: 187.5 | G9: 195.7 | K9: Mar | L9: 187.5 | M9: 232.6 | N9: 187.5 | O9: 195.7 | Q9: Whole Installation table A5:G18:
A10: Apr | B10: 400 | C10: 185.4 | D10: 229.4 | E10: 200 | F10: 185.4 | G10: 191.44 | K10: Apr | L10: 185.4 | M10: 229.4 | N10: 185.4 | O10: 191.44 | Q10: Mean: for 1/2 hourly and daily periods calculate mean of values across all operational combustion lines for the month
A11: May | B11: 400 | C11: 190.6 | D11: 224.6 | E11: 200 | F11: 190.6 | G11: 195.1 | K11: May | L11: 190.6 | M11: 224.6 | N11: 190.6 | O11: 195.1
A12: Jun | B12: 400 | C12: 189.9 | D12: 265.2 | E12: 200 | F12: 189.9 | G12: 196.03 | K12: Jun | L12: 189.9 | M12: 265.2 | N12: 189.9 | O12: 196.06
A13: Jul | B13: 400 | C13: 189.7 | D13: 235.9 | E13: 200 | F13: 189.7 | G13: 194.35 | K13: Jul | L13: 189.7 | M13: 235.9 | N13: 189.7 | O13: 194.35 | Q13: Maximum: for 1/2 hourly and daily periods use the highest value across all operational combustion lines for the month
A14: Aug | B14: 400 | C14: 190.4 | D14: 235.8 | E14: 200 | F14: 190.4 | G14: 197.56 | K14: Aug | L14: 190.4 | M14: 235.8 | N14: 190.4 | O14: 197.56
A15: Sep | B15: 400 | C15: 188.9 | D15: 260.9 | E15: 200 | F15: 188.9 | G15: 193.78 | K15: Sep | L15: 188.9 | M15: 260.9 | N15: 188.9 | O15: 193.78
A16: Oct | B16: 400 | C16: 195.7 | D16: 256.5 | E16: 200 | F16: 195.7 | G16: 199.01 | K16: Oct | L16: 195.7 | M16: 256.5 | N16: 195.7 | O16: 199.01
A17: Nov | B17: 400 | C17: 192.5 | D17: 241.7 | E17: 200 | F17: 192.5 | G17: 196.77 | K17: Nov | L17: 192.5 | M17: 241.7 | N17: 192.5 | O17: 196.77
A18: Dec | B18: 400 | C18: 176.4 | D18: 244.5 | E18: 200 | F18: 176.4 | G18: 179.9 | K18: Dec | L18: 176.4 | M18: 244.5 | N18: 176.4 | O18: 179.9
K19: Annual | L19: =AVERAGE(L7:L18) -> 189.8166667 | M19: =MAX(M7:M18) -> 265.2 | N19: =AVERAGE(N7:N18) -> 189.8166667 | O19: =MAX(O7:O18) -> 199.5
J21: =+A6 -> 2021 | K21: mg/Nm3 | L21: Monthly 1/2 hourly mean | M21: Monthly 1/2 hourly maximum | N21: Monthly daily mean | O21: Monthly daily maximum
J22: A2 | K22: Jan
K23: Feb
K24: Mar
K25: Apr
K26: May
K27: Jun
K28: Jul
K29: Aug
K30: Sep
K31: Oct
K32: Nov
K33: Dec
K34: Annual | L34: =AVERAGE(L22:L33) ->  | M34: =MAX(M22:M33) -> 0 | N34: =AVERAGE(N22:N33) ->  | O34: =MAX(O22:O33) -> 0
J36: =+A6 -> 2021 | K36: mg/Nm3 | L36: Monthly 1/2 hourly mean | M36: Monthly 1/2 hourly maximum | N36: Monthly daily mean | O36: Monthly daily maximum
J37: A3 | K37: Jan
K38: Feb
K39: Mar
K40: Apr
K41: May
K42: Jun
K43: Jul
K44: Aug
K45: Sep
K46: Oct
K47: Nov
A48: Comments : | K48: Dec
K49: Annual | L49: =AVERAGE(L37:L48) ->  | M49: =MAX(M37:M48) -> 0 | N49: =AVERAGE(N37:N48) ->  | O49: =MAX(O37:O48) -> 0
J51: =+A6 -> 2021 | K51: mg/Nm3 | L51: Monthly 1/2 hourly mean | M51: Monthly 1/2 hourly maximum | N51: Monthly daily mean | O51: Monthly daily maximum
J52: A4 | K52: Jan
K53: Feb
K54: Mar
K55: Apr
K56: May
K57: Jun
K58: Jul
K59: Aug
K60: Sep
K61: Oct
K62: Nov
K63: Dec
K64: Annual | L64: =AVERAGE(L52:L63) ->  | M64: =MAX(M52:M63) -> 0 | N64: =AVERAGE(N52:N63) ->  | O64: =MAX(O52:O63) -> 0
J66: =+A6 -> 2021 | K66: mg/Nm3 | L66: Monthly 1/2 hourly mean | M66: Monthly 1/2 hourly maximum | N66: Monthly daily mean | O66: Monthly daily maximum
J67: A5 | K67: Jan
K68: Feb
K69: Mar
K70: Apr
K71: May
K72: Jun
K73: Jul
K74: Aug
K75: Sep
K76: Oct
K77: Nov
K78: Dec
K79: Annual | L79: =AVERAGE(L67:L78) ->  | M79: =MAX(M67:M78) -> 0 | N79: =AVERAGE(N67:N78) ->  | O79: =MAX(O67:O78) -> 0

Sheet TOC
A1: =+'Cover Page'!$B$29 -> Annual Performance Report 2021 | E1: =+'Cover Page'!$B$33 -> Newlincs Development IWMF
A3: Monitoring of Total organic carbon emissions | D3: Whole Installation | G3: See Notes in Cell Q3 | J3: =+A3 -> Monitoring of Total organic carbon emissions | N3: Per Combustion Line | Q3: Notes:
Q4: User to add logic to complete Whole installation, Table A5:G18. From the data in Per Combustion Line, Table J6:O79, subject to No. of lines installed
A5: mg/Nm3 | B5: 1/2 Hourly Reference Periods | E5: Daily Reference Periods
A6: =+'Cover Page'!C39 -> 2021 | B6: 1/2 hourly TOC ELV | C6: Monthly 1/2 hourly mean | D6: Highest 1/2 hourly maximum | E6: Daily TOC ELV | F6: Monthly daily mean | G6: Highest daily maximum | J6: =+A6 -> 2021 | K6: mg/Nm3 | L6: Monthly 1/2 hourly mean | M6: Monthly 1/2 hourly maximum | N6: Monthly daily mean | O6: Monthly daily maximum
A7: Jan | B7: 20 | C7: 0.3 | D7: 2.4 | E7: 10 | F7: 0.3 | G7: 0.8 | J7: A1 | K7: Jan | L7: 0.3 | M7: 2.4 | N7: 0.3 | O7: 0.8
A8: Feb | B8: 20 | C8: 0.9 | D8: 19.6 | E8: 10 | F8: 0.9 | G8: 2.81 | K8: Feb | L8: 0.9 | M8: 19.6 | N8: 0.9 | O8: 2.81
A9: Mar | B9: 20 | C9: 0.5 | D9: 3.3 | E9: 10 | F9: 0.5 | G9: 2.8 | K9: Mar | L9: 0.5 | M9: 3.3 | N9: 0.5 | O9: 2.8 | Q9: Whole Installation table A5:G18:
A10: Apr | B10: 20 | C10: 0.56 | D10: 2.6 | E10: 10 | F10: 0.56 | G10: 1.32 | K10: Apr | L10: 0.56 | M10: 2.6 | N10: 0.56 | O10: 1.32 | Q10: Mean: for 1/2 hourly and daily periods calculate mean of values across all operational combustion lines for the month
A11: May | B11: 20 | C11: 0.55 | D11: 1.5 | E11: 10 | F11: 0.55 | G11: 0.82 | K11: May | L11: 0.55 | M11: 1.5 | N11: 0.55 | O11: 0.82
A12: Jun | B12: 20 | C12: 1.43 | D12: 10.2 | E12: 10 | F12: 1.43 | G12: 3.32 | K12: Jun | L12: 1.43 | M12: 10.2 | N12: 1.43 | O12: 3.32
A13: Jul | B13: 20 | C13: 1.18 | D13: 5 | E13: 10 | F13: 1.18 | G13: 1.63 | K13: Jul | L13: 1.18 | M13: 5 | N13: 1.18 | O13: 1.63 | Q13: Maximum: for 1/2 hourly and daily periods use the highest value across all operational combustion lines for the month
A14: Aug | B14: 20 | C14: 1.03 | D14: 4.7 | E14: 10 | F14: 1.03 | G14: 1.69 | K14: Aug | L14: 1.03 | M14: 4.7 | N14: 1.03 | O14: 1.69
A15: Sep | B15: 20 | C15: 0.88 | D15: 10.5 | E15: 10 | F15: 0.88 | G15: 2.4 | K15: Sep | L15: 0.88 | M15: 10.5 | N15: 0.88 | O15: 2.4
A16: Oct | B16: 20 | C16: 0.78 | D16: 3.6 | E16: 10 | F16: 0.78 | G16: 1.24 | K16: Oct | L16: 0.78 | M16: 3.6 | N16: 0.78 | O16: 1.24
A17: Nov | B17: 20 | C17: 0.82 | D17: 5.1 | E17: 10 | F17: 0.82 | G17: 1.19 | K17: Nov | L17: 0.82 | M17: 5.1 | N17: 0.82 | O17: 1.19
A18: Dec | B18: 20 | C18: 1.06 | D18: 5.6 | E18: 10 | F18: 1.06 | G18: 1.81 | K18: Dec | L18: 1.06 | M18: 5.6 | N18: 1.06 | O18: 1.81
K19: Annual | L19: =AVERAGE(L7:L18) -> 0.8325 | M19: =MAX(M7:M18) -> 19.6 | N19: =AVERAGE(N7:N18) -> 0.8325 | O19: =MAX(O7:O18) -> 3.32
J21: =+A6 -> 2021 | K21: mg/Nm3 | L21: Monthly 1/2 hourly mean | M21: Monthly 1/2 hourly maximum | N21: Monthly daily mean | O21: Monthly daily maximum
J22: A2 | K22: Jan
K23: Feb
K24: Mar
K25: Apr
K26: May
K27: Jun
K28: Jul
K29: Aug
K30: Sep
K31: Oct
K32: Nov
K33: Dec
K34: Annual | L34: =AVERAGE(L22:L33) ->  | M34: =MAX(M22:M33) -> 0 | N34: =AVERAGE(N22:N33) ->  | O34: =MAX(O22:O33) -> 0
J36: =+A6 -> 2021 | K36: mg/Nm3 | L36: Monthly 1/2 hourly mean | M36: Monthly 1/2 hourly maximum | N36: Monthly daily mean | O36: Monthly daily maximum
J37: A3 | K37: Jan
K38: Feb
K39: Mar
K40: Apr
K41: May
K42: Jun
K43: Jul
K44: Aug
K45: Sep
K46: Oct
K47: Nov
A48: Comments : | K48: Dec
K49: Annual | L49: =AVERAGE(L37:L48) ->  | M49: =MAX(M37:M48) -> 0 | N49: =AVERAGE(N37:N48) ->  | O49: =MAX(O37:O48) -> 0
J51: =+A6 -> 2021 | K51: mg/Nm3 | L51: Monthly 1/2 hourly mean | M51: Monthly 1/2 hourly maximum | N51: Monthly daily mean | O51: Monthly daily maximum
J52: A4 | K52: Jan
K53: Feb
K54: Mar
K55: Apr
K56: May
K57: Jun
K58: Jul
K59: Aug
K60: Sep
K61: Oct
K62: Nov
K63: Dec
K64: Annual | L64: =AVERAGE(L52:L63) ->  | M64: =MAX(M52:M63) -> 0 | N64: =AVERAGE(N52:N63) ->  | O64: =MAX(O52:O63) -> 0
J66: =+A6 -> 2021 | K66: mg/Nm3 | L66: Monthly 1/2 hourly mean | M66: Monthly 1/2 hourly maximum | N66: Monthly daily mean | O66: Monthly daily maximum
J67: A5 | K67: Jan
K68: Feb
K69: Mar
K70: Apr
K71: May
K72: Jun
K73: Jul
K74: Aug
K75: Sep
K76: Oct
K77: Nov
K78: Dec
K79: Annual | L79: =AVERAGE(L67:L78) ->  | M79: =MAX(M67:M78) -> 0 | N79: =AVERAGE(N67:N78) ->  | O79: =MAX(O67:O78) -> 0

Sheet Particulates
A1: =+'Cover Page'!$B$29 -> Annual Performance Report 2021 | E1: =+'Cover Page'!$B$33 -> Newlincs Development IWMF
A3: Monitoring of Particulate matter emissions | D3: Whole Installation | G3: See Notes in Cell Q3 | J3: =+A3 -> Monitoring of Particulate matter emissions | N3: Per Combustion Line | Q3: Notes:
Q4: User to add logic to complete Whole installation, Table A5:G18. From the data in Per Combustion Line, Table J6:O79, subject to No. of lines installed
A5: mg/Nm3 | B5: 1/2 Hourly Reference Periods | E5: Daily Reference Periods
A6: =+'Cover Page'!C39 -> 2021 | B6: 1/2 hourly PM ELV | C6: Monthly 1/2 hourly mean | D6: Highest 1/2 hourly maximum | E6: Daily PM ELV | F6: Monthly daily mean | G6: Highest daily maximum | J6: =+A6 -> 2021 | K6: mg/Nm3 | L6: Monthly 1/2 hourly mean | M6: Monthly 1/2 hourly maximum | N6: Monthly daily mean | O6: Monthly daily maximum
A7: Jan | B7: 30 | C7: 0.31 | D7: 0.5 | E7: 10 | F7: 0.31 | G7: 0.34 | J7: A1 | K7: Jan | L7: 0.31 | M7: 0.5 | N7: 0.31 | O7: 0.34
A8: Feb | B8: 30 | C8: 0.5 | D8: 12.4 | E8: 10 | F8: 0.5 | G8: 1.28 | K8: Feb | L8: 0.5 | M8: 12.4 | N8: 0.5 | O8: 1.28
A9: Mar | B9: 30 | C9: 0.59 | D9: 1 | E9: 10 | F9: 0.59 | G9: 0.86 | K9: Mar | L9: 0.59 | M9: 1 | N9: 0.59 | O9: 0.86 | Q9: Whole Installation table A5:G18:
A10: Apr | B10: 30 | C10: 0.58 | D10: 3.7 | E10: 10 | F10: 0.58 | G10: 0.85 | K10: Apr | L10: 0.58 | M10: 3.7 | N10: 0.58 | O10: 0.85 | Q10: Mean: for 1/2 hourly and daily periods calculate mean of values across all operational combustion lines for the month
A11: May | B11: 30 | C11: 0.75 | D11: 58.4 | E11: 10 | F11: 0.75 | G11: 2.42 | K11: May | L11: 0.75 | M11: 58.4 | N11: 0.75 | O11: 2.42
A12: Jun | B12: 30 | C12: 0.27 | D12: 4.4 | E12: 10 | F12: 0.27 | G12: 0.52 | K12: Jun | L12: 0.27 | M12: 4.4 | N12: 0.27 | O12: 0.52
A13: Jul | B13: 30 | C13: 0.16 | D13: 3.5 | E13: 10 | F13: 0.16 | G13: 0.3 | K13: Jul | L13: 0.16 | M13: 3.5 | N13: 0.16 | O13: 0.3 | Q13: Maximum: for 1/2 hourly and daily periods use the highest value across all operational combustion lines for the month
A14: Aug | B14: 30 | C14: 0.17 | D14: 10.8 | E14: 10 | F14: 0.17 | G14: 0.46 | K14: Aug | L14: 0.17 | M14: 10.8 | N14: 0.17 | O14: 0.46
A15: Sep | B15: 30 | C15: 0.21 | D15: 2.4 | E15: 10 | F15: 0.21 | G15: 0.31 | K15: Sep | L15: 0.21 | M15: 2.4 | N15: 0.21 | O15: 0.31
A16: Oct | B16: 30 | C16: 0.17 | D16: 9.3 | E16: 10 | F16: 0.17 | G16: 0.41 | K16: Oct | L16: 0.17 | M16: 9.3 | N16: 0.17 | O16: 0.41
A17: Nov | B17: 30 | C17: 0.22 | D17: 1.9 | E17: 10 | F17: 0.22 | G17: 0.48 | K17: Nov | L17: 0.22 | M17: 1.9 | N17: 0.22 | O17: 0.48
A18: Dec | B18: 30 | C18: 0.28 | D18: 0.9 | E18: 10 | F18: 0.28 | G18: 0.36 | K18: Dec | L18: 0.28 | M18: 0.9 | N18: 0.28 | O18: 0.36
K19: Annual | L19: =AVERAGE(L7:L18) -> 0.3508333333 | M19: =MAX(M7:M18) -> 58.4 | N19: =AVERAGE(N7:N18) -> 0.3508333333 | O19: =MAX(O7:O18) -> 2.42
J21: =+A6 -> 2021 | K21: mg/Nm3 | L21: Monthly 1/2 hourly mean | M21: Monthly 1/2 hourly maximum | N21: Monthly daily mean | O21: Monthly daily maximum
J22: A2 | K22: Jan
K23: Feb
K24: Mar
K25: Apr
K26: May
K27: Jun
K28: Jul
K29: Aug
K30: Sep
K31: Oct
K32: Nov
K33: Dec
K34: Annual | L34: =AVERAGE(L22:L33) ->  | M34: =MAX(M22:M33) -> 0 | N34: =AVERAGE(N22:N33) ->  | O34: =MAX(O22:O33) -> 0
J36: =+A6 -> 2021 | K36: mg/Nm3 | L36: Monthly 1/2 hourly mean | M36: Monthly 1/2 hourly maximum | N36: Monthly daily mean | O36: Monthly daily maximum
J37: A3 | K37: Jan
K38: Feb
K39: Mar
K40: Apr
K41: May
K42: Jun
K43: Jul
K44: Aug
K45: Sep
K46: Oct
K47: Nov
A48: Comments : | K48: Dec
A49: May Highest 1/2 hourly maximum @ 58.4 reported during a period of Abnormal Operation due to FGT blockage on 30/05. During Abnormal Operation the ELV for Particulates is not to exceed 150mg/m3. See "Permit Compliance" tab for details | K49: Annual | L49: =AVERAGE(L37:L48) ->  | M49: =MAX(M37:M48) -> 0 | N49: =AVERAGE(N37:N48) ->  | O49: =MAX(O37:O48) -> 0
J51: =+A6 -> 2021 | K51: mg/Nm3 | L51: Monthly 1/2 hourly mean | M51: Monthly 1/2 hourly maximum | N51: Monthly daily mean | O51: Monthly daily maximum
J52: A4 | K52: Jan
K53: Feb
K54: Mar
K55: Apr
K56: May
K57: Jun
K58: Jul
K59: Aug
K60: Sep
K61: Oct
K62: Nov
K63: Dec
K64: Annual | L64: =AVERAGE(L52:L63) ->  | M64: =MAX(M52:M63) -> 0 | N64: =AVERAGE(N52:N63) ->  | O64: =MAX(O52:O63) -> 0
J66: =+A6 -> 2021 | K66: mg/Nm3 | L66: Monthly 1/2 hourly mean | M66: Monthly 1/2 hourly maximum | N66: Monthly daily mean | O66: Monthly daily maximum
J67: A5 | K67: Jan
K68: Feb
K69: Mar
K70: Apr
K71: May
K72: Jun
K73: Jul
K74: Aug
K75: Sep
K76: Oct
K77: Nov
K78: Dec
K79: Annual | L79: =AVERAGE(L67:L78) ->  | M79: =MAX(M67:M78) -> 0 | N79: =AVERAGE(N67:N78) ->  | O79: =MAX(O67:O78) -> 0

Sheet CO 0.5hourly
A1: =+'Cover Page'!$B$29 -> Annual Performance Report 2021 | E1: =+'Cover Page'!$B$33 -> Newlincs Development IWMF
A3: Monitoring of Carbon Monoxide (half hourly) | D3: Whole Installation | G3: See Notes in Cell Q3 | J3: =+A3 -> Monitoring of Carbon Monoxide (half hourly) | N3: Per Combustion Line | Q3: Notes:
Q4: User to add logic to complete Whole installation, Table A5:G18. From the data in Per Combustion Line, Table J6:O79, subject to No. of lines installed
A5: mg/Nm3 | B5: 1/2 Hourly Reference Periods | E5: Daily Reference Periods
A6: =+'Cover Page'!C39 -> 2021 | B6: 1/2 hourly CO ELV | C6: Monthly 1/2 hourly mean | D6: Highest 1/2 hourly maximum | E6: Daily CO ELV | F6: Monthly daily mean | G6: Highest daily maximum | J6: =+A6 -> 2021 | K6: mg/Nm3 | L6: Monthly 1/2 hourly mean | M6: Monthly 1/2 hourly maximum | N6: Monthly daily mean | O6: Monthly daily maximum
A7: Jan | B7: 100 | C7: 2.7 | D7: 50.6 | E7: 50 | F7: 2.7 | G7: 4.2 | J7: A1 | K7: Jan | L7: 2.7 | M7: 50.6 | N7: 2.7 | O7: 4.2
A8: Feb | B8: =+B7 -> 100 | C8: 4.55 | D8: 78.3 | E8: =+E7 -> 50 | F8: 4.55 | G8: 6.17 | K8: Feb | L8: 4.55 | M8: 78.3 | N8: 4.55 | O8: 6.17
A9: Mar | B9: =+B8 -> 100 | C9: 3.4 | D9: 25.1 | E9: =+E8 -> 50 | F9: 3.4 | G9: 5.53 | K9: Mar | L9: 3.4 | M9: 25.1 | N9: 3.4 | O9: 5.53 | Q9: Whole Installation table A5:G18:
A10: Apr | B10: 100 | C10: 2.9 | D10: 52 | E10: 50 | F10: 2.9 | G10: 3.85 | K10: Apr | L10: 2.9 | M10: 52 | N10: 2.9 | O10: 3.85 | Q10: Mean: for 1/2 hourly and daily periods calculate mean of values across all operational combustion lines for the month
A11: May | B11: 100 | C11: 4.8 | D11: 31.1 | E11: 50 | F11: 4.8 | G11: 6.26 | K11: May | L11: 4.8 | M11: 31.1 | N11: 4.8 | O11: 6.26
A12: Jun | B12: 100 | C12: 4.2 | D12: 60.6 | E12: 50 | F12: 4.2 | G12: 6.61 | K12: Jun | L12: 4.2 | M12: 60.6 | N12: 4.2 | O12: 6.61
A13: Jul | B13: 100 | C13: 4.5 | D13: 77.3 | E13: 50 | F13: 4.5 | G13: 7.97 | K13: Jul | L13: 4.5 | M13: 77.3 | N13: 4.5 | O13: 7.97 | Q13: Maximum: for 1/2 hourly and daily periods use the highest value across all operational combustion lines for the month
A14: Aug | B14: 100 | C14: 3.4 | D14: 51 | E14: 50 | F14: 3.4 | G14: 5.42 | K14: Aug | L14: 3.4 | M14: 51 | N14: 3.4 | O14: 5.42
A15: Sep | B15: 100 | C15: 4.3 | D15: 180.8 | E15: 50 | F15: 4.3 | G15: 13.55 | K15: Sep | L15: 4.3 | M15: 180.8 | N15: 4.3 | O15: 13.55
A16: Oct | B16: 100 | C16: 4.1 | D16: 27.4 | E16: 50 | F16: 4.1 | G16: 6.51 | K16: Oct | L16: 4.1 | M16: 27.4 | N16: 4.1 | O16: 6.51
A17: Nov | B17: 100 | C17: 3.7 | D17: 36.1 | E17: 50 | F17: 3.7 | G17: 4.48 | K17: Nov | L17: 3.7 | M17: 36.1 | N17: 3.7 | O17: 4.48
A18: Dec | B18: 100 | C18: 4.4 | D18: 63.2 | E18: 50 | F18: 4.4 | G18: 7.29 | K18: Dec | L18: 4.4 | M18: 63.2 | N18: 4.4 | O18: 7.29
K19: Annual | L19: =AVERAGE(L7:L18) -> 3.9125 | M19: =MAX(M7:M18) -> 180.8 | N19: =AVERAGE(N7:N18) -> 3.9125 | O19: =MAX(O7:O18) -> 13.55
J21: =+A6 -> 2021 | K21: mg/Nm3 | L21: Monthly 1/2 hourly mean | M21: Monthly 1/2 hourly maximum | N21: Monthly daily mean | O21: Monthly daily maximum
J22: A2 | K22: Jan
K23: Feb
K24: Mar
K25: Apr
K26: May
K27: Jun
K28: Jul
K29: Aug
K30: Sep
K31: Oct
K32: Nov
K33: Dec
K34: Annual | L34: =AVERAGE(L22:L33) ->  | M34: =MAX(M22:M33) -> 0 | N34: =AVERAGE(N22:N33) ->  | O34: =MAX(O22:O33) -> 0
J36: =+A6 -> 2021 | K36: mg/Nm3 | L36: Monthly 1/2 hourly mean | M36: Monthly 1/2 hourly maximum | N36: Monthly daily mean | O36: Monthly daily maximum
J37: A3 | K37: Jan
K38: Feb
K39: Mar
K40: Apr
K41: May
K42: Jun
K43: Jul
K44: Aug
K45: Sep
K46: Oct
K47: Nov
A48: Comments : | K48: Dec
A49: September Highest 1/2 Hourly Maximum @180.8 reported as Exceedance on 17/09. See "Permit Compliance" tab for details. | K49: Annual | L49: =AVERAGE(L37:L48) ->  | M49: =MAX(M37:M48) -> 0 | N49: =AVERAGE(N37:N48) ->  | O49: =MAX(O37:O48) -> 0
J51: =+A6 -> 2021 | K51: mg/Nm3 | L51: Monthly 1/2 hourly mean | M51: Monthly 1/2 hourly maximum | N51: Monthly daily mean | O51: Monthly daily maximum
J52: A4 | K52: Jan
K53: Feb
K54: Mar
K55: Apr
K56: May
K57: Jun
K58: Jul
K59: Aug
K60: Sep
K61: Oct
K62: Nov
K63: Dec
K64: Annual | L64: =AVERAGE(L52:L63) ->  | M64: =MAX(M52:M63) -> 0 | N64: =AVERAGE(N52:N63) ->  | O64: =MAX(O52:O63) -> 0
J66: =+A6 -> 2021 | K66: mg/Nm3 | L66: Monthly 1/2 hourly mean | M66: Monthly 1/2 hourly maximum | N66: Monthly daily mean | O66: Monthly daily maximum
J67: A5 | K67: Jan
K68: Feb
K69: Mar
K70: Apr
K71: May
K72: Jun
K73: Jul
K74: Aug
K75: Sep
K76: Oct
K77: Nov
K78: Dec
K79: Annual | L79: =AVERAGE(L67:L78) ->  | M79: =MAX(M67:M78) -> 0 | N79: =AVERAGE(N67:N78) ->  | O79: =MAX(O67:O78) -> 0

Sheet CO 95% 10 min
A1: =+'Cover Page'!$B$29 -> Annual Performance Report 2021 | E1: =+'Cover Page'!$B$33 -> Newlincs Development IWMF
A3: Monitoring of Carbon Monoxide (10-minute avg) | E3: Whole Installation | H3: See Notes in Cell S3 | J3: =+A3 -> Monitoring of Carbon Monoxide (10-minute avg) | O3: Per Combustion Line | Q3: Notes: | S3: Notes:
S4: User to add logic to complete Whole installation, Table A5:H18. From the data in Per Combustion Line, Table K6:Q79, subject to No. of lines installed
A5: mg/Nm3 | B5: 10-minute Reference Periods | F5: Daily Reference Periods
A6: =+'Cover Page'!C39 -> 2021 | B6: 95%ile 10-min avg CO ELV | C6: 95%ile 10-min avg maximum | D6: Monthly CO 10-min avg mean | E6: 10-min avg maximum | F6: Daily CO ELV | G6: Monthly daily mean | H6: Highest daily maximum | K6: =+A6 -> 2021 | L6: mg/Nm3 | M6: 95%ile 10-min avg maximum | N6: Monthly CO 10-min avg mean | O6: 10-min avg maximum | P6: Monthly daily mean | Q6: Monthly daily maximum
A7: Jan | B7: 150 | C7: N/A | D7: N/A | E7: N/A | F7: 50 | G7: N/A | H7: N/A | K7: A1 | L7: Jan
A8: Feb | B8: =+B7 -> 150 | C8: N/A | D8: N/A | E8: N/A | F8: =+F7 -> 50 | G8: N/A | H8: N/A | L8: Feb
A9: Mar | B9: =+B8 -> 150 | C9: N/A | D9: N/A | E9: N/A | F9: =+F8 -> 50 | G9: N/A | H9: N/A | L9: Mar | S9: Whole Installation table A5:H18:
A10: Apr | B10: 150 | C10: N/A | D10: N/A | E10: N/A | F10: 50 | G10: N/A | H10: N/A | L10: Apr | S10: Mean: for 10-min and daily periods use average of all operational combustion lines.
A11: May | B11: 150 | C11: N/A | D11: N/A | E11: N/A | F11: 50 | G11: N/A | H11: N/A | L11: May
A12: Jun | B12: 150 | C12: N/A | D12: N/A | E12: N/A | F12: 50 | G12: N/A | H12: N/A | L12: Jun
A13: Jul | B13: 150 | C13: N/A | D13: N/A | E13: N/A | F13: 50 | G13: N/A | H13: N/A | L13: Jul | S13: Maximum: for 10-min and daily periods use the highest of all operational combustion lines in any month.
A14: Aug | B14: 150 | C14: N/A | D14: N/A | E14: N/A | F14: 50 | G14: N/A | H14: N/A | L14: Aug
A15: Sep | B15: 150 | C15: N/A | D15: N/A | E15: N/A | F15: 50 | G15: N/A | H15: N/A | L15: Sep
A16: Oct | B16: 150 | C16: N/A | D16: N/A | E16: N/A | F16: 50 | G16: N/A | H16: N/A | L16: Oct
A17: Nov | B17: 150 | C17: N/A | D17: N/A | E17: N/A | F17: 50 | G17: N/A | H17: N/A | L17: Nov
A18: Dec | B18: 150 | C18: N/A | D18: N/A | E18: N/A | F18: 50 | G18: N/A | H18: N/A | L18: Dec
L19: Annual | M19: =AVERAGE(M7:M18) ->  | O19: =MAX(O7:O18) -> 0 | P19: =AVERAGE(P7:P18) ->  | Q19: =MAX(Q7:Q18) -> 0
K21: =+A6 -> 2021 | L21: mg/Nm3 | M21: 95%ile 10-min avg maximum | N21: Monthly CO 10-min avg mean | O21: 10-min avg maximum | P21: Monthly daily mean | Q21: Monthly daily maximum
K22: A2 | L22: Jan
L23: Feb
L24: Mar
L25: Apr
L26: May
L27: Jun
L28: Jul
L29: Aug
L30: Sep
L31: Oct
L32: Nov
L33: Dec
L34: Annual | M34: =AVERAGE(M22:M33) ->  | O34: =MAX(O22:O33) -> 0 | P34: =AVERAGE(P22:P33) ->  | Q34: =MAX(Q22:Q33) -> 0
K36: =+A6 -> 2021 | L36: mg/Nm3 | M36: 95%ile 10-min avg maximum | N36: Monthly CO 10-min avg mean | O36: 10-min avg maximum | P36: Monthly daily mean | Q36: Monthly daily maximum
K37: A3 | L37: Jan
L38: Feb
L39: Mar
L40: Apr
L41: May
L42: Jun
L43: Jul
L44: Aug
L45: Sep
L46: Oct
L47: Nov
A48: Comments : | L48: Dec
A49: Environment Agency explanatory note: The 10-minute average ELV is based on the “95th percentile”. In this case this means that 95% of the 10 minute averages in the relevant 24-hour period (i.e. 137) must be below 150 mg/Nm3, and 5% (i.e. 7) are allowed to be any value above 150 mg/Nm3. Whilst we expect operators to minimise CO emissions at all times, it is perfectly acceptable for the value of the maximum 10-minute average to be above 150 mg/Nm3, provided the 95th percentile ELV has been met for that period. | L49: Annual | M49: =AVERAGE(M37:M48) ->  | O49: =MAX(O37:O48) -> 0 | P49: =AVERAGE(P37:P48) ->  | Q49: =MAX(Q37:Q48) -> 0
K51: =+A6 -> 2021 | L51: mg/Nm3 | M51: 95%ile 10-min avg maximum | N51: Monthly CO 10-min avg mean | O51: 10-min avg maximum | P51: Monthly daily mean | Q51: Monthly daily maximum
K52: A4 | L52: Jan
L53: Feb
L54: Mar
L55: Apr
L56: May
L57: Jun
L58: Jul
L59: Aug
L60: Sep
L61: Oct
L62: Nov
L63: Dec
L64: Annual | M64: =AVERAGE(M52:M63) ->  | O64: =MAX(O52:O63) -> 0 | P64: =AVERAGE(P52:P63) ->  | Q64: =MAX(Q52:Q63) -> 0
K66: =+A6 -> 2021 | L66: mg/Nm3 | M66: 95%ile 10-min avg maximum | N66: Monthly CO 10-min avg mean | O66: 10-min avg maximum | P66: Monthly daily mean | Q66: Monthly daily maximum
K67: A5 | L67: Jan
L68: Feb
L69: Mar
L70: Apr
L71: May
L72: Jun
L73: Jul
L74: Aug
L75: Sep
L76: Oct
L77: Nov
L78: Dec
L79: Annual | M79: =AVERAGE(M67:M78) ->  | O79: =MAX(O67:O78) -> 0 | P79: =AVERAGE(P67:P78) ->  | Q79: =MAX(Q67:Q78) -> 0

Sheet NH3
A1: =+'Cover Page'!$B$29 -> Annual Performance Report 2021 | E1: =+'Cover Page'!$B$33 -> Newlincs Development IWMF
A3: Monitoring of Ammnonia emissions | D3: Whole Installation | G3: See Notes in Cell Q3 | J3: =+A3 -> Monitoring of Ammnonia emissions | N3: Per Combustion Line | Q3: Notes:
Q4: User to add logic to complete Whole installation, Table A5:G18. From the data in Per Combustion Line, Table J6:O79, subject to No. of lines installed
A5: mg/Nm3 | B5: 1/2 Hourly Reference Periods | E5: Daily Reference Periods
A6: =+'Cover Page'!C39 -> 2021 | B6: 1/2 hourly NH3 ELV | C6: Monthly 1/2 hourly mean | D6: Highest 1/2 hourly maximum | E6: Daily NH3 ELV | F6: Monthly daily mean | G6: Highest daily maximum | J6: =+A6 -> 2021 | K6: mg/Nm3 | L6: Monthly 1/2 hourly mean | M6: Monthly 1/2 hourly maximum | N6: Monthly daily mean | O6: Monthly daily maximum
A7: Jan | B7: 0 | C7: 0.01 | D7: 1.42 | E7: 0 | F7: 0.01 | G7: 0.06 | J7: A1 | K7: Jan | L7: 0.01 | M7: 1.42 | N7: 0.01 | O7: 0.06
A8: Feb | B8: 0 | C8: 0.88 | D8: 39.8 | E8: 0 | F8: 0.88 | G8: 10.53 | K8: Feb | L8: 0.88 | M8: 39.8 | N8: 0.88 | O8: 10.53
A9: Mar | B9: 0 | C9: 0.36 | D9: 2.7 | E9: 0 | F9: 0.36 | G9: 0.98 | K9: Mar | L9: 0.36 | M9: 2.7 | N9: 0.36 | O9: 0.98 | Q9: Whole Installation table A5:G18:
A10: Apr | B10: 0 | C10: 0.37 | D10: 3.5 | E10: 0 | F10: 0.37 | G10: 0.96 | K10: Apr | L10: 0.37 | M10: 3.5 | N10: 0.37 | O10: 0.96 | Q10: Mean: for 1/2 hourly and daily periods calculate mean of values across all operational combustion lines for the month
A11: May | B11: 0 | C11: 0.2 | D11: 1.5 | E11: 0 | F11: 0.2 | G11: 0.59 | K11: May | L11: 0.2 | M11: 1.5 | N11: 0.2 | O11: 0.59
A12: Jun | B12: 0 | C12: 0.19 | D12: 1.4 | E12: 0 | F12: 0.19 | G12: 0.53 | K12: Jun | L12: 0.19 | M12: 1.4 | N12: 0.19 | O12: 0.53
A13: Jul | B13: 0 | C13: 0.09 | D13: 0.7 | E13: 0 | F13: 0.09 | G13: 0.23 | K13: Jul | L13: 0.09 | M13: 0.7 | N13: 0.09 | O13: 0.23 | Q13: Maximum: for 1/2 hourly and daily periods use the highest value across all operational combustion lines for the month
A14: Aug | B14: 0 | C14: 0.21 | D14: 1.1 | E14: 0 | F14: 0.21 | G14: 0.48 | K14: Aug | L14: 0.21 | M14: 1.1 | N14: 0.21 | O14: 0.48
A15: Sep | B15: 0 | C15: 0.62 | D15: 2.4 | E15: 0 | F15: 0.62 | G15: 1.02 | K15: Sep | L15: 0.62 | M15: 2.4 | N15: 0.62 | O15: 1.02
A16: Oct | B16: 0 | C16: 0.88 | D16: 1.8 | E16: 0 | F16: 0.88 | G16: 1.15 | K16: Oct | L16: 0.88 | M16: 1.8 | N16: 0.88 | O16: 1.15
A17: Nov | B17: 0 | C17: 0.98 | D17: 1.8 | E17: 0 | F17: 0.98 | G17: 1.32 | K17: Nov | L17: 0.98 | M17: 1.8 | N17: 0.98 | O17: 1.32
A18: Dec | B18: 0 | C18: 1.24 | D18: 2.4 | E18: 0 | F18: 1.24 | G18: 1.61 | K18: Dec | L18: 1.24 | M18: 2.4 | N18: 1.24 | O18: 1.61
K19: Annual | L19: =AVERAGE(L7:L18) -> 0.5025 | M19: =MAX(M7:M18) -> 39.8 | N19: =AVERAGE(N7:N18) -> 0.5025 | O19: =MAX(O7:O18) -> 10.53
J21: =+A6 -> 2021 | K21: mg/Nm3 | L21: Monthly 1/2 hourly mean | M21: Monthly 1/2 hourly maximum | N21: Monthly daily mean | O21: Monthly daily maximum
J22: A2 | K22: Jan
K23: Feb
K24: Mar
K25: Apr
K26: May
K27: Jun
K28: Jul
K29: Aug
K30: Sep
K31: Oct
K32: Nov
K33: Dec
K34: Annual | L34: =AVERAGE(L22:L33) ->  | M34: =MAX(M22:M33) -> 0 | N34: =AVERAGE(N22:N33) ->  | O34: =MAX(O22:O33) -> 0
J36: =+A6 -> 2021 | K36: mg/Nm3 | L36: Monthly 1/2 hourly mean | M36: Monthly 1/2 hourly maximum | N36: Monthly daily mean | O36: Monthly daily maximum
J37: A3 | K37: Jan
K38: Feb
K39: Mar
K40: Apr
K41: May
K42: Jun
K43: Jul
K44: Aug
K45: Sep
K46: Oct
K47: Nov
A48: Comments : | K48: Dec
A49: An indicated ELV value of zero in the table above means that no ammonia limit is set in the permit. | K49: Annual | L49: =AVERAGE(L37:L48) ->  | M49: =MAX(M37:M48) -> 0 | N49: =AVERAGE(N37:N48) ->  | O49: =MAX(O37:O48) -> 0
J51: =+A6 -> 2021 | K51: mg/Nm3 | L51: Monthly 1/2 hourly mean | M51: Monthly 1/2 hourly maximum | N51: Monthly daily mean | O51: Monthly daily maximum
J52: A4 | K52: Jan
K53: Feb
K54: Mar
K55: Apr
K56: May
K57: Jun
K58: Jul
K59: Aug
K60: Sep
K61: Oct
K62: Nov
K63: Dec
K64: Annual | L64: =AVERAGE(L52:L63) ->  | M64: =MAX(M52:M63) -> 0 | N64: =AVERAGE(N52:N63) ->  | O64: =MAX(O52:O63) -> 0
J66: =+A6 -> 2021 | K66: mg/Nm3 | L66: Monthly 1/2 hourly mean | M66: Monthly 1/2 hourly maximum | N66: Monthly daily mean | O66: Monthly daily maximum
J67: A5 | K67: Jan
K68: Feb
K69: Mar
K70: Apr
K71: May
K72: Jun
K73: Jul
K74: Aug
K75: Sep
K76: Oct
K77: Nov
K78: Dec
K79: Annual | L79: =AVERAGE(L67:L78) ->  | M79: =MAX(M67:M78) -> 0 | N79: =AVERAGE(N67:N78) ->  | O79: =MAX(O67:O78) -> 0
